[Event "Live Chess"]
[Site "Chess.com"]
[Date "2024.06.02"]
[Round "-"]
[White "mrsmarple1968"]
[Black "matt1979"]
[Result "1/2-1/2"]
[WhiteElo "1738"]
[BlackElo "1415"]
[TimeControl "300"]
[EndTime "4:07:37 PDT"]
[Termination "Game drawn by repetition"]

1. e4 {[%clk 0:04:54.8]} 1... d6 {[%clk 0:04:58.8]} 2. d4 {[%clk 0:04:52.5]}
2... Nf6 {[%clk 0:04:56.7]} 3. Nc3 {[%clk 0:04:50.3]} 3... Nbd7 {[%clk
0:04:55.7]} 4. Be3 {[%clk 0:04:43.5]} 4... e5 {[%clk 0:04:54.4]} 5. d5 {[%clk
0:04:41.3]} 5... Be7 {[%clk 0:04:52.6]} 6. f3 {[%clk 0:04:39.7]} 6... c6 {[%clk
0:04:51.5]} 7. Qd2 {[%clk 0:04:30.9]} 7... Qc7 {[%clk 0:04:50.1]} 8. O-O-O
{[%clk 0:04:27.4]} 8... O-O {[%clk 0:04:44.5]} 9. Bg5 {[%clk 0:04:22.1]} 9... c5
{[%clk 0:04:36.5]} 10. f4 {[%clk 0:04:05.6]} 10... h6 {[%clk 0:04:20.1]} 11.
Bxf6 {[%clk 0:03:44.6]} 11... Nxf6 {[%clk 0:04:15.9]} 12. h3 {[%clk 0:03:38.8]}
12... exf4 {[%clk 0:04:01.3]} 13. Qxf4 {[%clk 0:03:27.4]} 13... Ng4 {[%clk
0:03:46.5]} 14. Qg3 {[%clk 0:03:06.2]} 14... Bg5+ {[%clk 0:03:39.9]} 15. Kb1
{[%clk 0:03:04.3]} 15... Ne3 {[%clk 0:03:20]} 16. Re1 {[%clk 0:03:02.2]} 16...
Nxf1 {[%clk 0:03:02.4]} 17. Rxf1 {[%clk 0:03:00.4]} 17... b5 {[%clk 0:02:56.5]}
18. Nxb5 {[%clk 0:02:42.3]} 18... Qb6 {[%clk 0:02:48.7]} 19. Nc3 {[%clk
0:02:40.4]} 19... a5 {[%clk 0:02:42]} 20. h4 {[%clk 0:02:30.4]} 20... Bd2 {[%clk
0:02:32.5]} 21. Nh3 {[%clk 0:02:07.3]} 21... Qb4 {[%clk 0:02:21.7]} 22. Qd3
{[%clk 0:01:44.5]} 22... Rb8 {[%clk 0:02:05.2]} 23. Nd1 {[%clk 0:01:26.4]} 23...
a4 {[%clk 0:01:48.6]} 24. c3 {[%clk 0:01:22.5]} 24... Bxc3 {[%clk 0:01:28.9]}
25. Qxc3 {[%clk 0:01:17.9]} 25... Qxe4+ {[%clk 0:01:26.1]} 26. Ka1 {[%clk
0:01:13]} 26... Bf5 {[%clk 0:01:19.6]} 27. Qc1 {[%clk 0:00:54.3]} 27... a3
{[%clk 0:01:14.8]} 28. b3 {[%clk 0:00:49.2]} 28... Qd4+ {[%clk 0:00:56.1]} 29.
Qc3 {[%clk 0:00:42.8]} 29... Qe4 {[%clk 0:00:47.8]} 30. Qc1 {[%clk 0:00:40.1]}
30... Qd4+ {[%clk 0:00:43.6]} 31. Qc3 {[%clk 0:00:38.3]} 31... Qe4 {[%clk
0:00:42.5]} 32. Qc1 {[%clk 0:00:36.5]} 1/2-1/2

[Event "Live Chess"]
[Site "Chess.com"]
[Date "2024.06.02"]
[Round "-"]
[White "vincents82"]
[Black "CarmelJane"]
[Result "1/2-1/2"]
[WhiteElo "1991"]
[BlackElo "2063"]
[TimeControl "300"]
[EndTime "4:07:44 PDT"]
[Termination "Game drawn by agreement"]

1. e4 {[%clk 0:04:50.7]} 1... c5 {[%clk 0:04:56.9]} 2. Nf3 {[%clk 0:04:49.6]}
2... e6 {[%clk 0:04:56.4]} 3. d4 {[%clk 0:04:48.9]} 3... cxd4 {[%clk 0:04:55.4]}
4. Nxd4 {[%clk 0:04:48.4]} 4... Nf6 {[%clk 0:04:54.5]} 5. Nc3 {[%clk 0:04:46.7]}
5... Nc6 {[%clk 0:04:53.9]} 6. g3 {[%clk 0:04:45.7]} 6... Bb4 {[%clk 0:04:51.7]}
7. Bg2 {[%clk 0:04:44.6]} 7... O-O {[%clk 0:04:48.6]} 8. O-O {[%clk 0:04:43.6]}
8... d5 {[%clk 0:04:43.9]} 9. exd5 {[%clk 0:04:41]} 9... exd5 {[%clk 0:04:37.7]}
10. Bg5 {[%clk 0:04:33.7]} 10... Be6 {[%clk 0:04:30.8]} 11. Bxf6 {[%clk
0:04:24.3]} 11... Qxf6 {[%clk 0:04:25.5]} 12. Nxd5 {[%clk 0:04:23.4]} 12... Bxd5
{[%clk 0:04:20.1]} 13. Bxd5 {[%clk 0:04:20.7]} 13... Qxd4 {[%clk 0:04:10]} 14.
Qxd4 {[%clk 0:04:15.6]} 14... Nxd4 {[%clk 0:04:08.8]} 15. c3 {[%clk 0:04:14.7]}
15... Ne2+ {[%clk 0:04:06.9]} 16. Kg2 {[%clk 0:04:13.7]} 16... Nxc3 {[%clk
0:03:58.3]} 17. bxc3 {[%clk 0:04:11.4]} 17... Bxc3 {[%clk 0:03:58.2]} 18. Rab1
{[%clk 0:04:10.6]} 18... Rad8 {[%clk 0:03:45.8]} 19. Rfd1 {[%clk 0:04:02.2]}
19... b6 {[%clk 0:03:39.1]} 20. Bb3 {[%clk 0:04:00.7]} 20... h5 {[%clk
0:03:33.2]} 21. Rxd8 {[%clk 0:03:59.4]} 21... Rxd8 {[%clk 0:03:31.6]} 22. Rd1
{[%clk 0:03:59.1]} 22... Bf6 {[%clk 0:03:29.9]} 23. Rxd8+ {[%clk 0:03:57.4]}
23... Bxd8 {[%clk 0:03:29.8]} 24. Kf3 {[%clk 0:03:56.2]} 24... h4 {[%clk
0:03:26.9]} 25. Ke4 {[%clk 0:03:54.1]} 25... h3 {[%clk 0:03:25.2]} 26. Bc4
{[%clk 0:03:52.6]} 26... Be7 {[%clk 0:03:24.1]} 27. Bf1 {[%clk 0:03:50.5]} 27...
Bc5 {[%clk 0:03:23.4]} 28. f4 {[%clk 0:03:48.7]} 28... Bg1 {[%clk 0:03:21.6]}
29. Kf3 {[%clk 0:03:41]} 29... a5 {[%clk 0:03:11.6]} 30. Bxh3 {[%clk 0:03:39.7]}
30... b5 {[%clk 0:03:09.7]} 31. Bd7 {[%clk 0:03:35.3]} 31... b4 {[%clk
0:03:08.2]} 32. h4 {[%clk 0:03:32.9]} 32... Kf8 {[%clk 0:03:04.5]} 33. g4 {[%clk
0:03:31.3]} 33... Ke7 {[%clk 0:03:03.9]} 34. Ba4 {[%clk 0:03:30.5]} 34... Bd4
{[%clk 0:03:02.3]} 35. Ke4 {[%clk 0:03:29.4]} 35... Bf2 {[%clk 0:02:55.5]} 36.
h5 {[%clk 0:03:28.5]} 36... Kd6 {[%clk 0:02:49.9]} 37. Kf5 {[%clk 0:03:25.7]}
37... Be3 {[%clk 0:02:44.2]} 38. g5 {[%clk 0:03:21.3]} 38... Ke7 {[%clk
0:02:28.7]} 39. h6 {[%clk 0:03:12.7]} 39... gxh6 {[%clk 0:02:18.9]} 40. gxh6
{[%clk 0:03:12]} 40... Bd4 {[%clk 0:02:08.4]} 41. Ke4 {[%clk 0:03:04]} 41... Bc3
{[%clk 0:02:06.6]} 42. Bb3 {[%clk 0:02:54.3]} 42... Kf6 {[%clk 0:01:52.8]} 43.
f5 {[%clk 0:02:47.9]} 43... Kg5 {[%clk 0:01:37.7]} 44. Bxf7 {[%clk 0:02:23.4]}
44... Kxh6 {[%clk 0:01:33.1]} 45. Kd5 {[%clk 0:02:21]} 45... Kg5 {[%clk
0:01:29.7]} 46. Ke6 {[%clk 0:02:17.8]} 46... a4 {[%clk 0:01:27.5]} 47. Kd6
{[%clk 0:02:10.9]} 47... Kxf5 {[%clk 0:01:26.2]} 48. Kc5 {[%clk 0:02:09.8]}
48... Ke5 {[%clk 0:01:18.7]} 49. Kb5 {[%clk 0:02:08.8]} 49... a3 {[%clk
0:01:15.6]} 50. Bb3 {[%clk 0:02:00.1]} 50... Kd4 {[%clk 0:01:15.5]} 51. Kc6
{[%clk 0:01:59.1]} 51... Ke3 {[%clk 0:01:11.3]} 1/2-1/2

[Event "Live Chess"]
[Site "Chess.com"]
[Date "2024.06.02"]
[Round "-"]
[White "yarek"]
[Black "LL220284LL"]
[Result "0-1"]
[WhiteElo "1750"]
[BlackElo "2515"]
[TimeControl "300"]
[EndTime "4:07:47 PDT"]
[Termination "LL220284LL won by resignation"]

1. e4 {[%clk 0:04:57.1]} 1... c6 {[%clk 0:04:58.2]} 2. Nf3 {[%clk 0:04:54.1]}
2... g6 {[%clk 0:04:57.3]} 3. d3 {[%clk 0:04:50.7]} 3... Bg7 {[%clk 0:04:56.7]}
4. Nc3 {[%clk 0:04:47.8]} 4... d6 {[%clk 0:04:56.1]} 5. g3 {[%clk 0:04:44.9]}
5... Nd7 {[%clk 0:04:55.6]} 6. Bg2 {[%clk 0:04:44.1]} 6... Ngf6 {[%clk
0:04:54.8]} 7. O-O {[%clk 0:04:43.6]} 7... O-O {[%clk 0:04:53.3]} 8. Be3 {[%clk
0:04:42.5]} 8... b5 {[%clk 0:04:52.3]} 9. a3 {[%clk 0:04:40.7]} 9... a5 {[%clk
0:04:51]} 10. Nd2 {[%clk 0:04:28.7]} 10... Bb7 {[%clk 0:04:47.4]} 11. d4 {[%clk
0:04:15.5]} 11... b4 {[%clk 0:04:39.5]} 12. axb4 {[%clk 0:04:13.7]} 12... axb4
{[%clk 0:04:39.4]} 13. Na4 {[%clk 0:04:08.3]} 13... Nb6 {[%clk 0:04:31.4]} 14.
Nxb6 {[%clk 0:04:05.2]} 14... Qxb6 {[%clk 0:04:31.3]} 15. d5 {[%clk 0:04:03.2]}
15... Qb5 {[%clk 0:04:26.1]} 16. Nb3 {[%clk 0:03:53.9]} 16... Rxa1 {[%clk
0:04:19.2]} 17. Qxa1 {[%clk 0:03:52.6]} 17... cxd5 {[%clk 0:04:14.7]} 18. Nd4
{[%clk 0:03:44.3]} 18... Qd7 {[%clk 0:04:11.2]} 19. exd5 {[%clk 0:03:24.9]}
19... Bxd5 {[%clk 0:04:06.7]} 20. c3 {[%clk 0:03:14.3]} 20... Bxg2 {[%clk
0:04:01]} 21. Kxg2 {[%clk 0:03:14.2]} 21... Nd5 {[%clk 0:03:57]} 22. Bd2 {[%clk
0:03:06.4]} 22... Qb7 {[%clk 0:03:51.1]} 23. Kg1 {[%clk 0:03:03.2]} 23... Rc8
{[%clk 0:03:44.6]} 24. cxb4 {[%clk 0:02:56.5]} 24... Bxd4 {[%clk 0:03:41.9]} 0-1

[Event "Live Chess"]
[Site "Chess.com"]
[Date "2024.06.02"]
[Round "-"]
[White "wadsy27"]
[Black "upoe610"]
[Result "1-0"]
[WhiteElo "2594"]
[BlackElo "2123"]
[TimeControl "300"]
[EndTime "4:07:56 PDT"]
[Termination "wadsy27 won by resignation"]

1. d4 {[%clk 0:04:58.3]} 1... Nf6 {[%clk 0:04:56.1]} 2. c4 {[%clk 0:04:58.2]}
2... c5 {[%clk 0:04:55.1]} 3. d5 {[%clk 0:04:56.3]} 3... b5 {[%clk 0:04:54]} 4.
cxb5 {[%clk 0:04:55.7]} 4... a6 {[%clk 0:04:53.5]} 5. bxa6 {[%clk 0:04:54.3]}
5... Bxa6 {[%clk 0:04:53.4]} 6. Nc3 {[%clk 0:04:53.4]} 6... g6 {[%clk 0:04:52]}
7. e4 {[%clk 0:04:52.4]} 7... Bxf1 {[%clk 0:04:50.4]} 8. Kxf1 {[%clk 0:04:52.3]}
8... d6 {[%clk 0:04:50]} 9. Nf3 {[%clk 0:04:51.8]} 9... Bg7 {[%clk 0:04:48.9]}
10. g3 {[%clk 0:04:51.4]} 10... O-O {[%clk 0:04:47.7]} 11. Kg2 {[%clk
0:04:51.1]} 11... Nbd7 {[%clk 0:04:46.9]} 12. a4 {[%clk 0:04:49.1]} 12... Qb6
{[%clk 0:04:45.7]} 13. Qe2 {[%clk 0:04:40.4]} 13... Rfb8 {[%clk 0:04:43.4]} 14.
Nb5 {[%clk 0:04:35.7]} 14... Ne8 {[%clk 0:04:42.2]} 15. Nd2 {[%clk 0:04:34]}
15... Qa6 {[%clk 0:04:36.7]} 16. Ra3 {[%clk 0:04:19.7]} 16... Rb7 {[%clk
0:04:27.2]} 17. Nc4 {[%clk 0:04:14.9]} 17... Nc7 {[%clk 0:04:23.4]} 18. Re1
{[%clk 0:04:06.6]} 18... Rab8 {[%clk 0:04:18.8]} 19. Nxc7 {[%clk 0:03:35.2]}
19... Rxc7 {[%clk 0:04:16]} 20. Bg5 {[%clk 0:03:33.9]} 20... Rb4 {[%clk
0:04:08.3]} 21. Bxe7 {[%clk 0:03:20.6]} 21... Qxc4 {[%clk 0:04:01.6]} 22. Bxd6
{[%clk 0:03:18.5]} 22... Ra7 {[%clk 0:03:57.2]} 23. Qxc4 {[%clk 0:03:10.2]}
23... Rxc4 {[%clk 0:03:56]} 24. e5 {[%clk 0:03:09.6]} 24... Rcxa4 {[%clk
0:03:53.7]} 25. Rxa4 {[%clk 0:03:07.3]} 25... Rxa4 {[%clk 0:03:53.6]} 26. e6
{[%clk 0:03:06.6]} 26... fxe6 {[%clk 0:03:48.4]} 27. dxe6 {[%clk 0:03:06.5]}
27... Nf6 {[%clk 0:03:47.6]} 28. Bxc5 {[%clk 0:03:03.5]} 28... Ne8 {[%clk
0:03:41.4]} 29. b4 {[%clk 0:03:00.5]} 29... Ra6 {[%clk 0:03:36.9]} 30. h4 {[%clk
0:02:58.1]} 30... Bf8 {[%clk 0:03:35.9]} 31. e7 {[%clk 0:02:56.6]} 31... Bg7
{[%clk 0:03:34.5]} 32. Rd1 {[%clk 0:02:54.1]} 32... Kf7 {[%clk 0:03:33.5]} 33.
b5 {[%clk 0:02:46.6]} 33... Ra5 {[%clk 0:03:26.8]} 34. Rb1 {[%clk 0:02:45.4]}
34... Nc7 {[%clk 0:03:10.3]} 35. Rb3 {[%clk 0:02:16.5]} 35... Rxb5 {[%clk
0:03:04.4]} 36. Rf3+ {[%clk 0:02:15.2]} 36... Ke8 {[%clk 0:02:59.7]} 37. Rf8+
{[%clk 0:02:13.1]} 37... Kd7 {[%clk 0:02:59]} 38. Rd8+ {[%clk 0:02:11.9]} 38...
Kc6 {[%clk 0:02:53.7]} 39. Bd6 {[%clk 0:02:10.6]} 39... Ne8 {[%clk 0:02:38.4]}
40. Bf4 {[%clk 0:02:03]} 40... Nf6 {[%clk 0:02:17.6]} 41. Rd6+ {[%clk
0:02:00.4]} 41... Kc5 {[%clk 0:02:12.1]} 42. Rxf6 {[%clk 0:01:58.9]} 1-0

[Event "Live Chess"]
[Site "Chess.com"]
[Date "2024.06.02"]
[Round "-"]
[White "Bodhanas"]
[Black "asingardenof"]
[Result "1-0"]
[WhiteElo "2339"]
[BlackElo "621"]
[TimeControl "300"]
[EndTime "4:08:03 PDT"]
[Termination "Bodhanas won by resignation"]

1. d4 {[%clk 0:04:57.1]} 1... Nf6 {[%clk 0:04:58.6]} 2. Nf3 {[%clk 0:04:55.9]}
2... Nc6 {[%clk 0:04:57]} 3. c4 {[%clk 0:04:54.5]} 3... d6 {[%clk 0:04:52.7]} 4.
Nc3 {[%clk 0:04:53.3]} 4... Bf5 {[%clk 0:04:51.1]} 5. e3 {[%clk 0:04:51.3]} 5...
g6 {[%clk 0:04:48.9]} 6. Bd3 {[%clk 0:04:49.9]} 6... Bxd3 {[%clk 0:04:46.7]} 7.
Qxd3 {[%clk 0:04:48.9]} 7... Bg7 {[%clk 0:04:46.6]} 8. O-O {[%clk 0:04:47.6]}
8... O-O {[%clk 0:04:45.1]} 9. h3 {[%clk 0:04:46.8]} 9... Nb4 {[%clk 0:04:36.8]}
10. Qe2 {[%clk 0:04:44.7]} 10... c5 {[%clk 0:04:31.6]} 11. a3 {[%clk 0:04:40.7]}
11... Nc6 {[%clk 0:04:26.4]} 12. Rd1 {[%clk 0:04:34.6]} 12... d5 {[%clk
0:04:23.5]} 13. cxd5 {[%clk 0:04:32.1]} 13... Na5 {[%clk 0:04:16.4]} 14. dxc5
{[%clk 0:04:24.4]} 14... Qb8 {[%clk 0:04:06.5]} 15. e4 {[%clk 0:04:17.7]} 15...
Rd8 {[%clk 0:04:04]} 16. Be3 {[%clk 0:04:13.6]} 16... a6 {[%clk 0:03:55.8]} 17.
Bd4 {[%clk 0:04:03.5]} 17... b5 {[%clk 0:03:55.1]} 18. cxb6 {[%clk 0:03:55.2]}
18... Nc4 {[%clk 0:03:50.6]} 19. Qxc4 {[%clk 0:03:52.8]} 19... Rc8 {[%clk
0:03:44.9]} 20. Qe2 {[%clk 0:03:51.2]} 20... Nh5 {[%clk 0:03:37.9]} 21. Bxg7
{[%clk 0:03:34.3]} 21... Nxg7 {[%clk 0:03:37.8]} 22. e5 {[%clk 0:03:32.9]} 22...
Re8 {[%clk 0:03:32.3]} 23. Rac1 {[%clk 0:03:30.2]} 23... Qxb6 {[%clk 0:03:26.4]}
24. Ne4 {[%clk 0:03:25.7]} 24... Nf5 {[%clk 0:03:23.6]} 25. Nc5 {[%clk
0:03:21.9]} 25... e6 {[%clk 0:03:13.6]} 26. d6 {[%clk 0:03:19.9]} 26... Rad8
{[%clk 0:02:41]} 27. b4 {[%clk 0:03:14.7]} 27... a5 {[%clk 0:02:35.1]} 28. b5
{[%clk 0:03:13.5]} 28... a4 {[%clk 0:02:29.9]} 29. Nxa4 {[%clk 0:03:09.3]} 29...
Qa5 {[%clk 0:02:26.5]} 30. Nc5 {[%clk 0:03:07.2]} 30... Qxa3 {[%clk 0:02:24.8]}
31. b6 {[%clk 0:03:03.7]} 31... Qa4 {[%clk 0:02:16.7]} 32. Nxa4 {[%clk 0:02:57]}
32... Ra8 {[%clk 0:01:53]} 33. d7 {[%clk 0:02:54.5]} 33... Red8 {[%clk
0:01:51.2]} 34. Nc5 {[%clk 0:02:51.7]} 34... Ra5 {[%clk 0:01:48.8]} 35. Nb7
{[%clk 0:02:50.1]} 35... Rb5 {[%clk 0:01:47.2]} 36. Nxd8 {[%clk 0:02:48.6]} 1-0

[Event "Live Chess"]
[Site "Chess.com"]
[Date "2024.06.02"]
[Round "-"]
[White "defenderalist"]
[Black "Bradfield133"]
[Result "0-1"]
[WhiteElo "1525"]
[BlackElo "1862"]
[TimeControl "300"]
[EndTime "4:08:17 PDT"]
[Termination "Bradfield133 won by resignation"]

1. e4 {[%clk 0:04:59.3]} 1... c5 {[%clk 0:04:58.3]} 2. Nf3 {[%clk 0:04:57.5]}
2... Nc6 {[%clk 0:04:56.9]} 3. Bc4 {[%clk 0:04:55.6]} 3... g6 {[%clk 0:04:54.6]}
4. O-O {[%clk 0:04:53.5]} 4... Bg7 {[%clk 0:04:53.6]} 5. d3 {[%clk 0:04:52.1]}
5... e6 {[%clk 0:04:50]} 6. Bg5 {[%clk 0:04:50.5]} 6... Nge7 {[%clk 0:04:47.7]}
7. Qd2 {[%clk 0:04:49.5]} 7... Nd4 {[%clk 0:04:36.3]} 8. Nxd4 {[%clk 0:04:48]}
8... cxd4 {[%clk 0:04:33.8]} 9. Bh6 {[%clk 0:04:43.1]} 9... O-O {[%clk
0:04:31.4]} 10. Bxg7 {[%clk 0:04:42.1]} 10... Kxg7 {[%clk 0:04:31.3]} 11. f4
{[%clk 0:04:41.3]} 11... d5 {[%clk 0:04:27.7]} 12. Bb3 {[%clk 0:04:36.6]} 12...
dxe4 {[%clk 0:04:20.3]} 13. dxe4 {[%clk 0:04:35.1]} 13... Qb6 {[%clk 0:04:13.9]}
14. Kh1 {[%clk 0:04:24.8]} 14... Bd7 {[%clk 0:04:01.7]} 15. Na3 {[%clk
0:04:21.2]} 15... Rad8 {[%clk 0:03:43.8]} 16. Nc4 {[%clk 0:04:19.8]} 16... Qc5
{[%clk 0:03:31.7]} 17. Ne5 {[%clk 0:04:17.9]} 17... Bb5 {[%clk 0:03:18.5]} 18.
Nd3 {[%clk 0:04:11.4]} 18... Qc7 {[%clk 0:03:05.1]} 19. f5 {[%clk 0:04:07.9]}
19... exf5 {[%clk 0:03:02.3]} 20. exf5 {[%clk 0:04:06.5]} 20... f6 {[%clk
0:02:39.2]} 21. fxg6 {[%clk 0:03:59.9]} 21... hxg6 {[%clk 0:02:37]} 22. Nf4
{[%clk 0:03:46.9]} 22... Bd7 {[%clk 0:02:21.3]} 23. Be6 {[%clk 0:03:35]} 23...
Rh8 {[%clk 0:02:13]} 24. Bxd7 {[%clk 0:03:30]} 24... Qxd7 {[%clk 0:02:08.8]} 25.
Ne6+ {[%clk 0:03:25.5]} 25... Qxe6 {[%clk 0:02:06]} 26. Rae1 {[%clk 0:03:19.4]}
26... Qd6 {[%clk 0:01:59.9]} 27. h3 {[%clk 0:03:12.5]} 27... Nf5 {[%clk
0:01:53.2]} 28. Rxf5 {[%clk 0:03:07.7]} 28... gxf5 {[%clk 0:01:51.2]} 29. Qd3
{[%clk 0:03:02.2]} 29... Rhe8 {[%clk 0:01:33.5]} 30. Rf1 {[%clk 0:02:52.3]}
30... Re4 {[%clk 0:01:29]} 31. Rxf5 {[%clk 0:02:46.9]} 31... Re1+ {[%clk
0:01:25.8]} 32. Rf1 {[%clk 0:02:45.8]} 32... Rxf1+ {[%clk 0:01:24.4]} 33. Qxf1
{[%clk 0:02:44.5]} 33... d3 {[%clk 0:01:19.6]} 34. cxd3 {[%clk 0:02:39]} 34...
Qxd3 {[%clk 0:01:17.7]} 35. Qf4 {[%clk 0:02:36.2]} 35... Qd1+ {[%clk 0:01:14.6]}
36. Kh2 {[%clk 0:02:35.3]} 36... Qd6 {[%clk 0:01:13.2]} 0-1

[Event "Live Chess"]
[Site "Chess.com"]
[Date "2024.06.02"]
[Round "-"]
[White "Duke_of_Bebington"]
[Black "Andriy_Yaremovych"]
[Result "0-1"]
[WhiteElo "1630"]
[BlackElo "1601"]
[TimeControl "300"]
[EndTime "4:08:45 PDT"]
[Termination "Andriy_Yaremovych won by resignation"]

1. e4 {[%clk 0:04:57.1]} 1... b6 {[%clk 0:04:58.7]} 2. d4 {[%clk 0:04:55.3]}
2... Bb7 {[%clk 0:04:58.6]} 3. Bd3 {[%clk 0:04:54.6]} 3... Nf6 {[%clk
0:04:57.8]} 4. Nc3 {[%clk 0:04:51.5]} 4... e6 {[%clk 0:04:57.1]} 5. Nge2 {[%clk
0:04:50.2]} 5... Bb4 {[%clk 0:04:56.2]} 6. a3 {[%clk 0:04:47.3]} 6... Bxc3+
{[%clk 0:04:53.5]} 7. Nxc3 {[%clk 0:04:45.2]} 7... Qe7 {[%clk 0:04:52.6]} 8. Bg5
{[%clk 0:04:40.4]} 8... h6 {[%clk 0:04:51.3]} 9. Bh4 {[%clk 0:04:39.4]} 9... g5
{[%clk 0:04:50]} 10. Bg3 {[%clk 0:04:38.4]} 10... d6 {[%clk 0:04:49.2]} 11. Qe2
{[%clk 0:04:28.2]} 11... Nbd7 {[%clk 0:04:47.2]} 12. O-O-O {[%clk 0:04:26.3]}
12... O-O-O {[%clk 0:04:45.4]} 13. Ba6 {[%clk 0:04:22.6]} 13... e5 {[%clk
0:04:42.5]} 14. Bxb7+ {[%clk 0:04:19.7]} 14... Kxb7 {[%clk 0:04:42.4]} 15. dxe5
{[%clk 0:04:07.2]} 15... Nxe5 {[%clk 0:04:40.9]} 16. Rhe1 {[%clk 0:03:54.2]}
16... h5 {[%clk 0:04:34.8]} 17. f3 {[%clk 0:03:51.4]} 17... h4 {[%clk
0:04:33.2]} 18. Bf2 {[%clk 0:03:48.5]} 18... Nfd7 {[%clk 0:04:31]} 19. h3 {[%clk
0:03:42.5]} 19... f6 {[%clk 0:04:29.6]} 20. Nd5 {[%clk 0:03:40.2]} 20... Qf7
{[%clk 0:04:28.4]} 21. Bd4 {[%clk 0:03:31.3]} 21... c6 {[%clk 0:04:26.1]} 22.
Bxe5 {[%clk 0:03:26.4]} 22... dxe5 {[%clk 0:04:26]} 23. Ne3 {[%clk 0:03:23.1]}
23... Nc5 {[%clk 0:04:22.8]} 24. Nf5 {[%clk 0:03:19.2]} 24... Rxd1+ {[%clk
0:04:17.1]} 25. Rxd1 {[%clk 0:03:18.1]} 25... Qa2 {[%clk 0:04:07.4]} 26. Rd6
{[%clk 0:02:55.4]} 26... Rf8 {[%clk 0:03:56.6]} 27. Kd2 {[%clk 0:01:48.9]} 27...
Qxb2 {[%clk 0:03:50.3]} 28. Ne3 {[%clk 0:01:41.1]} 28... Qxa3 {[%clk 0:03:39.4]}
29. Qc4 {[%clk 0:01:32.6]} 29... Nxe4+ {[%clk 0:03:36.4]} 30. fxe4 {[%clk
0:01:27.6]} 30... Qxd6+ {[%clk 0:03:36.3]} 31. Ke2 {[%clk 0:01:24.5]} 31... Rd8
{[%clk 0:03:34.1]} 32. Qd3 {[%clk 0:01:21.3]} 32... Qe7 {[%clk 0:03:28.9]} 0-1

[Event "Live Chess"]
[Site "Chess.com"]
[Date "2024.06.02"]
[Round "-"]
[White "elis06"]
[Black "Queensandpawns"]
[Result "0-1"]
[WhiteElo "2322"]
[BlackElo "2250"]
[TimeControl "300"]
[EndTime "4:08:56 PDT"]
[Termination "Queensandpawns won by checkmate"]

1. d4 {[%clk 0:04:54.1]} 1... e5 {[%clk 0:04:58]} 2. dxe5 {[%clk 0:04:50.5]}
2... Nc6 {[%clk 0:04:57.6]} 3. Nf3 {[%clk 0:04:49.6]} 3... Qe7 {[%clk
0:04:57.3]} 4. Bf4 {[%clk 0:04:46.3]} 4... Qb4+ {[%clk 0:04:56.9]} 5. Bd2 {[%clk
0:04:41.6]} 5... Qxb2 {[%clk 0:04:56.8]} 6. Nc3 {[%clk 0:04:40.3]} 6... Nb4
{[%clk 0:04:56.5]} 7. Nd4 {[%clk 0:04:24.9]} 7... Na6 {[%clk 0:04:55.8]} 8. Rb1
{[%clk 0:04:22.3]} 8... Qa3 {[%clk 0:04:55]} 9. Ncb5 {[%clk 0:04:20.8]} 9... Qc5
{[%clk 0:04:52.1]} 10. e3 {[%clk 0:04:18.9]} 10... Qxe5 {[%clk 0:04:50.5]} 11.
Bd3 {[%clk 0:04:17.9]} 11... c6 {[%clk 0:04:48.7]} 12. Nc3 {[%clk 0:04:17]}
12... d5 {[%clk 0:04:47.1]} 13. O-O {[%clk 0:04:15.5]} 13... Nc5 {[%clk
0:04:45.8]} 14. Nf3 {[%clk 0:04:13.6]} 14... Qc7 {[%clk 0:04:43.4]} 15. e4
{[%clk 0:04:12]} 15... dxe4 {[%clk 0:04:38.1]} 16. Nxe4 {[%clk 0:04:11]} 16...
Be6 {[%clk 0:04:37.5]} 17. Nxc5 {[%clk 0:04:08.6]} 17... Bxc5 {[%clk 0:04:37.4]}
18. Re1 {[%clk 0:04:07]} 18... O-O-O {[%clk 0:04:36.8]} 19. Qe2 {[%clk
0:04:04.4]} 19... Nf6 {[%clk 0:04:35.6]} 20. Be3 {[%clk 0:03:58.4]} 20... Bxe3
{[%clk 0:04:33.7]} 21. Qxe3 {[%clk 0:03:57.9]} 21... Kb8 {[%clk 0:04:32.9]} 22.
Ba6 {[%clk 0:03:55.8]} 22... b6 {[%clk 0:04:28.5]} 23. Bd3 {[%clk 0:03:54.7]}
23... Nd5 {[%clk 0:04:27.5]} 24. Qd2 {[%clk 0:03:51]} 24... Nf4 {[%clk
0:04:24.4]} 25. Ne5 {[%clk 0:03:45.8]} 25... Nxd3 {[%clk 0:04:22.1]} 26. cxd3
{[%clk 0:03:44.2]} 26... Rd5 {[%clk 0:04:18.3]} 27. Qc3 {[%clk 0:03:39.3]} 27...
Kb7 {[%clk 0:04:09.4]} 28. Nc4 {[%clk 0:03:34.9]} 28... Rhd8 {[%clk 0:04:07.4]}
29. Qxg7 {[%clk 0:03:24.7]} 29... Rxd3 {[%clk 0:04:03.5]} 30. Ne3 {[%clk
0:03:18.6]} 30... Rd2 {[%clk 0:03:52.8]} 31. a4 {[%clk 0:03:11]} 31... Qf4
{[%clk 0:03:51.9]} 32. Qg3 {[%clk 0:03:08.5]} 32... Qxg3 {[%clk 0:03:50.7]} 33.
hxg3 {[%clk 0:03:08]} 33... Ra2 {[%clk 0:03:49.6]} 34. Rb4 {[%clk 0:03:04.9]}
34... Rdd2 {[%clk 0:03:48.2]} 35. Rf4 {[%clk 0:03:03.6]} 35... Ra3 {[%clk
0:03:36.9]} 36. Nc4 {[%clk 0:02:54.8]} 36... Bxc4 {[%clk 0:03:26]} 37. Rxc4
{[%clk 0:02:53.8]} 37... Rd7 {[%clk 0:03:22]} 38. Rh4 {[%clk 0:02:49.9]} 38...
c5 {[%clk 0:03:13.5]} 39. Rc1 {[%clk 0:02:38.1]} 39... Rc7 {[%clk 0:03:12.1]}
40. Rxh7 {[%clk 0:02:36.3]} 40... Rxa4 {[%clk 0:03:11.2]} 41. f3 {[%clk
0:02:31.5]} 41... c4 {[%clk 0:03:10.2]} 42. Rh4 {[%clk 0:02:29.8]} 42... b5
{[%clk 0:03:09.6]} 43. Rd4 {[%clk 0:02:27.7]} 43... Ra2 {[%clk 0:03:07.3]} 44.
g4 {[%clk 0:02:25.5]} 44... Kb6 {[%clk 0:03:04.1]} 45. Rcd1 {[%clk 0:02:21.8]}
45... a5 {[%clk 0:03:02.6]} 46. Rd6+ {[%clk 0:02:20.8]} 46... Rc6 {[%clk
0:03:02.1]} 47. Rd8 {[%clk 0:02:19.5]} 47... c3 {[%clk 0:03:01.3]} 48. Rc1
{[%clk 0:02:17.8]} 48... b4 {[%clk 0:02:57]} 49. Rd7 {[%clk 0:02:15.5]} 49... b3
{[%clk 0:02:53.7]} 50. Rb1 {[%clk 0:02:13.7]} 50... b2 {[%clk 0:02:52.4]} 51.
Rxf7 {[%clk 0:02:12.6]} 51... c2 {[%clk 0:02:51.1]} 52. Rxb2+ {[%clk 0:02:12.2]}
52... Rxb2 {[%clk 0:02:50.7]} 53. g5 {[%clk 0:02:11.1]} 53... c1=Q+ {[%clk
0:02:49.9]} 54. Kh2 {[%clk 0:02:10.6]} 54... Qxg5 {[%clk 0:02:49.6]} 55. Rh7
{[%clk 0:02:09.6]} 55... Qxg2# {[%clk 0:02:48.4]} 0-1